fUSD/lending_fUSD_20240414
["ID","MTS","AMOUNT","RATE_DAILY","PERIOD"]
[322578579,1713081064356,-151.0,0.00050625,120]
[322578580,1713081064365,-532.624572,0.00050625,120]
[322578581,1713081064375,-419.417051,0.00050625,120]
[322578582,1713081064386,-532.624572,0.00050625,120]
[322578583,1713081064395,-151.0,0.00050625,14]
[322578584,1713081064405,-419.417051,0.00050625,120]
[322578585,1713081064415,-167.211154,0.00050625,120]
[322578586,1713081064425,-151.0,0.00050625,120]
[322578587,1713081064434,-167.211154,0.00050625,120]
[322578588,1713081064444,-431.50708,0.00050625,120]
[322578589,1713081064454,-431.50708,0.00050625,120]
[322578590,1713081064463,-151.0,0.00050625,120]
[322578591,1713081064473,-155.871854,0.00050625,120]
[322578592,1713081064483,-153.774988,0.00050625,120]
[322578593,1713081064493,-151.0,0.00050625,120]
[322578594,1713081064503,-151.0,0.00050625,120]
[322578595,1713081064514,-156.723988,0.00050625,120]
[322578596,1713081064523,-786.259033,0.00050625,120]
[322578597,1713081064533,-786.259033,0.00050625,120]
[322578598,1713081064544,-195.804325,0.00050625,120]
[322578599,1713081064554,-151.0,0.00050625,120]
[322578600,1713081064564,-195.804325,0.00050625,120]
[322578601,1713081064574,-151.0,0.00050625,120]
[322578602,1713081064584,-218.222334,0.00050625,30]
[322578603,1713081064596,-218.222334,0.00050625,30]
[322578604,1713081064606,-151.0,0.00050625,120]
[322578605,1713081064616,-274.364586,0.00050625,120]
[322578606,1713081064630,-151.0,0.00050625,120]
[322578607,1713081064640,-274.364586,0.00050625,120]
[322578608,1713081064650,-164.915614,0.00050625,120]
[322578609,1713081064659,-164.915614,0.00050625,120]
[322578610,1713081064670,-151.0,0.00050625,120]
[322578611,1713081064679,-151.0,0.00050625,120]
[322578612,1713081064690,-151.0,0.00050625,120]
[322578613,1713081064700,-4914.828209,0.00050684,30]
[322578614,1713081064710,-1677.215085,0.00050684,30]
[322578615,1713081064720,-3460.822729,0.00050684,30]
[322578616,1713081064730,-1816.931933,0.00050684,30]
[322578617,1713081064740,-10849.435248,0.00050684,30]
[322578618,1713081064750,-5787.705438,0.00050684,30]
[322578619,1713081064762,-151.0,0.00050684,120]
[322578620,1713081064772,-776.036863,0.00050684,7]
[322578621,1713081064787,-151.0,0.00050684,120]
[322578622,1713081064797,-348.349858,0.00050684,120]
[322578623,1713081064806,-776.036863,0.00050684,7]
[322578624,1713081064817,-151.0,0.00050684,120]
[322578625,1713081064828,-348.349858,0.00050684,120]
[322578626,1713081064838,-225.265027,0.00050684,120]
[322578627,1713081064852,-225.265027,0.00050684,120]
[322578628,1713081064862,-151.0,0.00050684,120]
[322578629,1713081064872,-152.37555,0.00050684,120]
[322578630,1713081064883,-151.0,0.00050684,120]
[322578631,1713081064893,-229.426931,0.00050684,30]
[322578632,1713081064903,-151.0,0.00050684,120]
[322578633,1713081064913,-151.0,0.00050684,120]
[322578634,1713081064922,-229.426931,0.00050684,30]
[322578635,1713081064932,-151.0,0.00050684,120]
[322578636,1713081064941,-151.0,0.00050684,120]
[322578637,1713081064951,-151.0,0.00050684,120]
[322578638,1713081064961,-151.0,0.00050684,120]
[322578639,1713081064970,-151.0,0.00050684,120]
[322578640,1713081064979,-3000.0,0.00050684,120]
[322578641,1713081064989,-154.763508,0.00050684,120]
[322578642,1713081064998,-153.428887,0.00050684,120]
[322578643,1713081065008,-1968.216409,0.00050684,120]
[322578644,1713081065018,-1968.216409,0.00050684,120]
[322578645,1713081065027,-151.0,0.00050684,30]
[322578646,1713081065037,-739.408894,0.00050684,120]
[322578647,1713081065051,-151.0,0.00050684,120]
[322578648,1713081065061,-739.408894,0.00050684,120]
[322578649,1713081065072,-151.0,0.00050684,120]
[322578650,1713081065082,-297.814214,0.00050684,120]
[322578651,1713081065098,-297.814214,0.00050684,120]
[322578652,1713081065108,-443.91136319,0.00050684,60]
[322578653,1713081065117,-242.71617137,0.00050686,60]
[322578654,1713081065128,-157.64176833,0.00050694,60]
[322578655,1713081065140,-5830.03288657,0.0005074,2]
[322578656,1713081065150,-507.53654184,0.00050756,90]
[322578657,1713081065161,-500.0,0.00050756,90]
[322578658,1713081065172,-600.0,0.00050756,90]
[322578659,1713081065182,-500.0,0.00050756,90]
[322578660,1713081065192,-1031.0,0.00050766,30]
[322578661,1713081065202,-151.0,0.00050795,120]
[322578662,1713081065212,-639.0,0.00050796,30]
[322578663,1713081065222,-569.0,0.00050796,30]
[322578664,1713081065232,-156.3106271,0.00050814,60]
[322578665,1713081065242,-763.55410888,0.00050821,120]
[322578666,1713081065253,-332.93477396,0.00050821,60]
[322578667,1713081065262,-253044.03629157,0.000509,30]
[322578668,1713081065272,-150.0,0.00050908,120]
[322578669,1713081065282,-1356.3480425,0.00050953,2]
[322578670,1713081065292,-3270.7527672,0.00050953,2]
[322578671,1713081065302,-1052.0,0.00050959,60]
[322578672,1713081065311,-227.28455,0.00050965,2]
[322578673,1713081065321,-18424.0111994,0.00050965,2]
[322578674,1713081065332,-1255.4706456,0.00050965,2]
[322578675,1713081065346,-2574.4984378,0.00050965,2]
[322578676,1713081065357,-153.57672703,0.00050966,60]
[322578677,1713081065367,-1766.37387069,0.00050988,88]
[322578678,1713081065378,-100000.0,0.00051,51]
[322578679,1713081065390,-20000.0,0.00051,120]
[322578680,1713081065401,-160.00064463,0.00051,30]
[322578681,1713081065411,-150.0,0.00051,15]
[322578682,1713081065422,-46939.64469549,0.00051,2]
[322578683,1713081065431,-250.0,0.00051,30]
[322578684,1713081065441,-4058.34487093,0.00051,120]
[322578685,1713081065450,-2000.0,0.00051,120]
[322578686,1713081065460,-150.2993191,0.00051,14]
[322578687,1713081065470,-500.0,0.00051,120]
[322578688,1713081065479,-150.0,0.00051,29]
[322578689,1713081065488,-1250.0,0.00051,3]
[322578690,1713081065498,-258.9,0.00051014,120]
[322578691,1713081065508,-500.0,0.0005103,90]
[322578692,1713081065518,-3982.66077747,0.00051129,30]
[322578693,1713081065527,-1618.07110588,0.00051129,30]
[322578694,1713081065537,-306.35424071,0.00051129,30]
[322578695,1713081065547,-1492.34904237,0.00051129,30]
[322578696,1713081065557,-157.041513,0.00051198,90]
[322578697,1713081065566,-332.93477396,0.0005122,60]
[322578698,1713081065576,-157.64176833,0.00051245,60]
[322578699,1713081065586,-639.0,0.00051294,30]
[322578700,1713081065598,-569.0,0.00051294,30]
[322578701,1713081065609,-150.0,0.000513,30]
[322578702,1713081065621,-441.57752365,0.00051304,90]
[322578703,1713081065630,-600.0,0.00051304,90]
[322578704,1713081065641,-157.64176833,0.00051312,60]
[322578705,1713081065652,-289.82932389,0.00051382,60]
[322578706,1713081065662,-153.57672703,0.00051398,60]
[322578707,1713081065672,-156.46926548,0.00051399,60]
[322578708,1713081065682,-1766.37387069,0.00051452,89]
[322578709,1713081065693,-157.041507,0.00051498,94]
[322578710,1713081065703,-484.33720384,0.000515,2]
[322578711,1713081065712,-332.93477396,0.00051569,60]
[322578712,1713081065722,-3982.66077747,0.00051577,30]
[322578713,1713081065732,-1618.07110588,0.00051577,30]
[322578714,1713081065742,-306.35424071,0.00051577,30]
[322578715,1713081065752,-1492.34904237,0.00051577,30]
[322578716,1713081065762,-500.0,0.00051578,90]
[322578717,1713081065771,-150.0,0.00051581,120]
[322578718,1713081065781,-153.31823437,0.00051582,60]
[322578719,1713081065791,-154.99801969,0.00051588,60]
[322578720,1713081065803,-1000.0,0.000516,30]
[322578721,1713081065813,-203.0,0.0005161,30]
[322578722,1713081065823,-159.66968864,0.00051614,60]
[322578723,1713081065833,-258.9,0.00051616,120]
[322578724,1713081065845,-150.0,0.00051624,120]
[322578725,1713081065854,-289.82932389,0.00051677,60]
[322578726,1713081065864,-212.0,0.0005168,30]
[322578727,1713081065875,-159.78997798,0.00051719,60]
[322578728,1713081065886,-2282.63,0.00051726,120]
[322578729,1713081065896,-165.8815706,0.00051791,60]
[322578730,1713081065906,-678.09124502,0.000518,60]
[322578731,1713081065916,-4914.828209,0.000518,30]
[322578732,1713081065925,-1677.215085,0.000518,30]
[322578733,1713081065935,-3460.822729,0.000518,30]
[322578734,1713081065945,-1816.931933,0.000518,30]
[322578735,1713081065955,-10849.435248,0.000518,30]
[322578736,1713081065964,-5787.705438,0.000518,30]
[322578737,1713081065974,-256.13487886,0.00051801,60]
[322578738,1713081065984,-171.20687448,0.00051823,60]
[322578739,1713081066210,-600.0,0.00051852,90]
[322578740,1713081066220,-1000.0,0.000519,30]
[322578741,1713081066230,-1766.37387069,0.00051915,91]
[322578742,1713081066240,-155.72346719,0.00051915,60]
[322578743,1713081066250,-242.71617137,0.0005192,60]
[322578744,1713081066259,-242.71617137,0.00051931,60]
[322578745,1713081066269,-165.88157063,0.00051942,60]
[322578746,1713081066279,-332.93477396,0.00051961,60]
[322578747,1713081066288,-318.8130496,0.00051976,60]
[322578748,1713081066298,-100000.0,0.00052,52]
[322578749,1713081066307,-64059.0,0.00052,120]
[322578750,1713081066317,-20000.0,0.00052,120]
[322578751,1713081066327,-203.34412406,0.00052,120]
[322578752,1713081066337,-342.07725653,0.00052,120]
[322578753,1713081066347,-19001.56560242,0.00052,120]
[322578754,1713081066357,-741.73325544,0.00052,30]
[322578755,1713081066367,-187.68968617,0.00052,120]
[322578756,1713081066377,-220.0,0.00052,120]
[322578757,1713081066386,-450.0,0.00052,120]
[322578758,1713081066396,-250.0,0.00052,30]
[322578759,1713081066406,-2967.85266034,0.00052,120]
[322578760,1713081066416,-2000.0,0.00052,120]
[322578761,1713081066425,-2100.000009,0.00052,30]
[322578762,1713081066435,-500.0,0.00052,120]
[322578763,1713081066444,-150.0,0.00052,30]
[322578764,1713081066453,-4842.25839467,0.00052,120]
[322578765,1713081066462,-20000.0,0.00052,120]
[322578766,1713081066472,-175046.39044386,0.00052,2]
[322578767,1713081066482,-250000.0,0.00052,7]
[322578768,1713081066491,-30000.0,0.00052,120]
[322578769,1713081066501,-5563.0,0.00052,60]
[322578770,1713081066511,-13014.89747845,0.00052,60]
[322578771,1713081066520,-5394.58330138,0.00052,60]
[322578772,1713081066529,-3519.9903822,0.00052,60]
[322578773,1713081066538,-5117.22445408,0.00052,60]
[322578774,1713081066547,-289.82932389,0.00052015,60]
[322578775,1713081066557,-3982.66077747,0.00052024,30]
[322578776,1713081066566,-1618.07110588,0.00052024,30]
[322578777,1713081066576,-306.35424071,0.00052024,30]
[322578778,1713081066586,-1492.34904237,0.00052024,30]
[322578779,1713081066597,-318.8130496,0.00052037,60]
[322578780,1713081066607,-666.0,0.00052054,2]
[322578781,1713081066616,-960.5,0.00052055,30]
[322578782,1713081066625,-318.8130496,0.00052089,60]
[322578783,1713081066635,-500.0,0.00052126,90]
[322578784,1713081066645,-159.98891826,0.00052191,60]
[322578785,1713081066654,-151.0,0.00052192,120]
[322578786,1713081066664,-157.041513,0.00052198,93]
[322578787,1713081066673,-1000.0,0.000522,30]
[322578788,1713081066683,-258.9,0.00052219,120]
[322578789,1713081066692,-289.82932389,0.00052237,60]
[322578790,1713081066702,-154.99801969,0.00052268,60]
[322578791,1713081066711,-1052.0,0.00052329,120]
[322578792,1713081066721,-171.20687448,0.00052345,60]
[322578793,1713081066731,-487.27,0.00052349,2]
[322578794,1713081066741,-332.93477396,0.00052363,60]
[322578795,1713081066752,-318.8130496,0.00052368,60]
[322578796,1713081066762,-1766.37387069,0.00052378,93]
[322578797,1713081066772,-332.93477396,0.00052382,60]
[322578798,1713081066789,-201.58764879,0.00052387,60]
[322578799,1713081066801,-171.20687448,0.00052391,60]
[322578800,1713081066813,-600.0,0.000524,90]
[322578801,1713081066823,-157.64176833,0.00052406,60]
[322578802,1713081066834,-156.83100348,0.00052412,60]
[322578803,1713081066850,-153.57672707,0.00052431,60]
[322578804,1713081066860,-3982.66077747,0.00052471,30]
[322578805,1713081066877,-1618.07110588,0.00052471,30]
[322578806,1713081066886,-306.35424071,0.00052471,30]
[322578807,1713081066907,-1492.34904237,0.00052471,30]
[322578808,1713081066931,-5723.29524117,0.0005249,30]
[322578809,1713081066945,-242.71617137,0.00052493,60]
[322578810,1713081066968,-157.041513,0.00052498,97]
[322578811,1713081066986,-348.0681556,0.000525,120]
[322578812,1713081067006,-1000.0,0.000525,30]
[322578813,1713081067023,-200.0,0.000525,120]
[322578814,1713081067039,-5000.0,0.00052541,40]
[322578815,1713081067050,-5000.0,0.00052541,36]
[322578816,1713081067087,-256.13487886,0.00052543,60]
[322578817,1713081067121,-171.20687448,0.00052544,60]
[322578818,1713081067132,-156.46926548,0.00052573,60]
[322578819,1713081067142,-154.99801969,0.00052612,60]
[322578820,1713081067152,-318.8130496,0.00052635,60]
[322578821,1713081067162,-516.57402301,0.00052674,90]
[322578822,1713081067182,-459.0,0.00052675,28]
[322578823,1713081067192,-156.88723516,0.00052678,60]
[322578824,1713081067203,-5023.6305694,0.000527,120]
[322578825,1713081067213,-155.46548869,0.00052717,60]
[322578826,1713081067223,-1000.0,0.000528,30]
[322578827,1713081067233,-1228.707052,0.000528,30]
[322578828,1713081067246,-419.303771,0.000528,30]
[322578829,1713081067257,-865.205682,0.000528,30]
[322578830,1713081067267,-454.232983,0.000528,30]
[322578831,1713081067278,-2712.358812,0.000528,30]
[322578832,1713081067288,-1446.926359,0.000528,30]
[322578833,1713081067299,-258.9,0.00052822,120]
[322578834,1713081067310,-1766.37387069,0.00052842,94]
[322578835,1713081067320,-156.31062711,0.00052846,60]
[322578836,1713081067331,-3982.66077747,0.00052918,30]
[322578837,1713081067342,-1618.07110588,0.00052918,30]
[322578838,1713081067353,-306.35424071,0.00052918,30]
[322578839,1713081067364,-1492.34904237,0.00052918,30]
[322578840,1713081067375,-11593.40694523,0.00052922,120]
[322578841,1713081067387,-318.8130496,0.00052939,60]
[322578842,1713081067398,-600.0,0.00052948,90]
[322578843,1713081067425,-166.84086599,0.00052952,60]
[322578844,1713081067460,-10533.6,0.00052957,117]
[322578845,1713081067479,-242.71617137,0.00052963,60]
[322578846,1713081067496,-156.46926558,0.00052977,60]
[322578847,1713081067507,-100000.0,0.00053,53]
[322578848,1713081067517,-570.11734971,0.00053,2]
[322578849,1713081067557,-158.19820391,0.00053,31]
[322578850,1713081067574,-158.19045551,0.00053,31]
[322578851,1713081067584,-158.19265176,0.00053,31]
[322578852,1713081067597,-158.19238551,0.00053,31]
[322578853,1713081067607,-10000.0,0.00053,120]
[322578854,1713081067618,-250.0,0.00053,30]
[322578855,1713081067629,-1500.0,0.00053,120]
[322578856,1713081067640,-107479.86682541,0.00053,120]
[322578857,1713081067650,-2000.0,0.00053,120]
[322578858,1713081067661,-7484.81005234,0.00053,120]
[322578859,1713081067672,-8958.52808432,0.00053,120]
[322578860,1713081067683,-500.0,0.00053,120]
[322578861,1713081067693,-20000.0,0.00053,120]
[322578862,1713081067704,-716410.55092845,0.00053,5]
[322578863,1713081068783,-4394.20266019,0.00053,5]
[322578864,1713081068827,-24995.630268,0.00053,5]
[322578865,1713081069040,-10.94280758,0.00053,5]
[322578866,1713081081786,9593.11489578,0.000154,2]
[322578867,1713081087142,9093.91566213,9e-05,2]
[322578868,1713081089219,1039.62090649,0.00018,2]
[322578869,1713081101086,8000.0,0.00011,2]
[322578870,1713081118505,21151.18799433,6.94e-05,2]
[322578871,1713081120073,416.35389969,0.000144,2]
[322578872,1713081181195,439.46,0.00015,2]
[322578874,1713081240777,1721.44744408,0.00020999,5]
[322578875,1713081260565,1000.0,0.0002,2]
[322578876,1713081273425,82909.80614632,0.00015,2]
[322578877,1713081277759,208.49796773,0.0001,2]
[322578879,1713081281973,400.0,0.00025,30]
[322578880,1713081282472,44792.25266809,0.00025,30]
[322578883,1713081509435,173.09,0.00019698,2]
[322578885,1713081554641,357.62,0.00019587,2]
[322578887,1713081600519,1097.38141525,0.00020999,5]
[322578888,1713081600564,1097.38141524,0.00020899,5]
[322578890,1713081613555,-4317.2879473,0.00020381,2]
[322578891,1713081613575,-419.22939929,0.00020381,2]
[322578892,1713081613597,-155.0,0.00020381,2]
[322578893,1713081613618,-786.17678241,0.00020381,2]
[322578894,1713081613643,-325.27031537,0.00020381,2]
[322578895,1713081613664,-3078.21068361,0.00020381,2]
[322578896,1713081613685,-551.36056667,0.00020382,2]
[322578897,1713081613706,-1297.79891384,0.00020382,2]
[322578898,1713081613728,-155.0,0.00020382,2]
[322578899,1713081613750,-523.31351988,0.00020382,2]
[322578900,1713081613770,-708.94208122,0.00020382,2]
[322578901,1713081613792,-155.0,0.00020382,2]
[322578902,1713081613814,-155.0,0.00020382,2]
[322578903,1713081613835,-532.4738176,0.00020382,2]
[322578904,1713081613858,-236.43311706,0.00020383,2]
[322578905,1713081613879,-155.0,0.00020383,2]
[322578906,1713081613900,-408.53072925,0.00020383,2]
[322578907,1713081613920,-1059.36088493,0.00020383,2]
[322578908,1713081613943,-155.0,0.00020383,2]
[322578909,1713081613964,-486.67993032,0.00020383,2]
[322578910,1713081613984,-405.1994349,0.00020383,2]
[322578911,1713081614007,-155.0,0.00020383,2]
[322578912,1713081614028,-616.69299396,0.00020383,2]
[322578913,1713081614403,-236.43431949,0.00020383,2]
[322578914,1713081614425,-6215.68294364,0.00020383,2]
[322578915,1713081614446,-362.75793443,0.00020384,2]
[322578916,1713081614467,-164.29423485,0.00020384,2]
[322578917,1713081614488,-155.0,0.00020384,2]
[322578918,1713081614509,-1992.21788626,0.00020384,2]
[322578919,1713081614530,-2176.78118277,0.00020385,2]
[322578920,1713081614554,-810.15104837,0.00020385,2]
[322578921,1713081614576,-538.59178431,0.00020385,2]
[322578922,1713081614597,-155.0,0.00020385,2]
[322578923,1713081614618,-155.0,0.00020386,2]
[322578924,1713081614639,-683.27995213,0.00020386,2]
[322578925,1713081614659,-4722.8830301,0.00020386,2]
[322578926,1713081614679,-376.34801074,0.00020386,2]
[322578927,1713081614699,-155.0,0.00020387,2]
[322578928,1713081614721,-342.88812472,0.00020387,2]
[322578929,1713081614742,-261.94705182,0.00020387,2]
[322578930,1713081614766,-161.29586727,0.00020388,2]
[322578931,1713081614786,-206.50643448,0.00020388,2]
[322578932,1713081614810,-296.28666493,0.00020388,2]
[322578933,1713081614831,-257.83754039,0.00020388,2]
[322578934,1713081614853,-200.04259109,0.00020389,2]
[322578935,1713081614875,-426.62808707,0.00020389,2]
[322578936,1713081614897,-5539.30222896,0.00020389,2]
[322578937,1713081614919,-407.90695941,0.00020389,2]
[322578938,1713081614941,-4326.39237795,0.0002039,2]
[322578939,1713081614966,-1774.53502354,0.00020391,2]
[322578940,1713081614988,-4010.68306178,0.00020393,2]
[322578941,1713081615014,-194.10878141,0.00020401,2]
[322578942,1713081615035,-305.47902704,0.00020401,2]
[322578943,1713081615061,-166.37895552,0.00020401,2]
[322578944,1713081615083,-256.3300225,0.00020402,2]
[322578945,1713081615105,-16940.4953,0.00020411,2]
[322578946,1713081615353,155.0,0.0002038,2]
[322578947,1713081615421,155.0,0.00020381,2]
[322578948,1713081615778,269.611831,0.0002038,2]
[322578949,1713081615839,1127.03271038,0.0002038,2]
[322578950,1713081616878,621.12248273,0.0002038,2]
[322578951,1713081616911,257.83754039,0.0002038,2]
[322578952,1713081619427,1774.53502354,0.0002038,2]
[322578953,1713081640948,688.38408417,0.00020401,2]
[322578954,1713081671687,949.2196,0.00020397,2]
[322578955,1713081673114,32189.82918321,0.00020397,2]
[322578956,1713081824299,23900.0,0.00019477,2]
[322578957,1713081843911,151.3,0.00019615,2]
[322578958,1713081844160,151.3,0.00019683,2]
[322578959,1713081844729,151.3,0.00019752,2]
[322578960,1713081845004,151.3,0.0001982,2]
[322578961,1713081845186,151.3,0.00019888,2]
[322578962,1713081845353,151.3,0.00019956,2]
[322578963,1713081864988,1263.5,0.00019335,2]
[322578964,1713081889123,391.32,0.00017417,2]
[322578965,1713081889334,391.32,0.00019681,2]
[322578966,1713081943482,728.73,0.00019522,2]
[322578967,1713082033726,4317.2879473,0.00019999,2]
[322578968,1713082037741,621.12248273,0.00019999,2]
[322578969,1713082038168,1127.03271038,0.00019999,2]
[322578970,1713082038261,5539.30222896,0.00019999,2]
[322578971,1713082040920,1297.79891384,0.00019999,2]
[322578972,1713082042295,362.75793443,0.00019999,2]
[322578973,1713082043019,419.22939929,0.00019999,2]
[322578974,1713082043100,3078.21068361,0.00019999,2]
[322578975,1713082044322,257.83754039,0.00019999,2]
[322578976,1713082045207,683.27995213,0.00019999,2]
[322578977,1713082045359,236.43431949,0.00019999,2]
[322578978,1713082045584,708.94208122,0.00019999,2]
[322578979,1713082047131,408.53072925,0.00019999,2]
[322578980,1713082047361,3200.0,0.000199,7]
[322578981,1713082048101,2176.78118277,0.00019999,2]
[322578982,1713082048512,645.12345445,0.00019999,2]
[322578983,1713082048751,261.94705182,0.00019999,2]
[322578984,1713082049462,6500.0,0.0002,7]
[322578985,1713082049910,325.27031537,0.00019999,2]
[322578986,1713082050630,1774.53502354,0.00019999,2]
[322578987,1713082051583,786.17678241,0.00019999,2]
[322578988,1713082051634,9700.0,0.000201,7]
[322578989,1713082051825,1059.36088493,0.00019999,2]
[322578990,1713082055100,13000.0,0.000202,7]
[322578991,1713082055271,426.62808707,0.00019999,2]
[322578992,1713082056446,13683.78972543,0.000203,7]
[322578993,1713082056472,2516.21027457,0.000203,7]
[322578994,1713082060369,3200.0,0.000204,7]
[322578995,1713082060888,405.1994349,0.00019998,2]
[322578996,1713082061475,810.15104837,0.00019998,2]
[322578997,1713082062250,3200.0,0.000205,7]
[322578998,1713082063629,236.43311706,0.00019999,2]
[322578999,1713082064213,3200.0,0.000206,7]
[322579000,1713082064813,551.36056667,0.00019999,2]
[322579001,1713082065743,407.90695941,0.00019999,2]
[322579002,1713082066483,3200.0,0.000207,7]
[322579003,1713082068445,3748.0,0.000208,7]
[322579004,1713082068684,486.67993032,0.00019999,2]
[322579005,1713082069010,6215.68294364,0.0002,2]
[322579006,1713082070962,538.59178431,0.00019999,2]
[322579007,1713082075686,523.31351988,0.00019999,2]
[322579008,1713082080717,155.0,0.00019999,2]
[322579009,1713082084604,659.63489159,0.00019999,2]
[322579010,1713082104684,178.81,0.00019365,2]
[322579013,1713082213539,298.57199912,0.00019365,2]
[322579014,1713082227685,1000.0,0.00019228,2]
[322579023,1713082232374,-167.14197404,0.00019887,2]
[322579024,1713082232384,-2490.12461946,0.00019887,2]
[322579025,1713082232395,-1380.44026994,0.00019887,2]
[322579026,1713082232407,-259.94301548,0.00019887,2]
[322579027,1713082232420,-1408.79432408,0.00019887,2]
[322579028,1713082232429,-1297.79891384,0.00019887,2]
[322579029,1713082232439,-486.67993032,0.00019888,2]
[322579030,1713082232448,-4722.8830301,0.00019888,2]
[322579031,1713082232458,-200.04259109,0.00019889,2]
[322579032,1713082232468,-269.611831,0.00019889,2]
[322579033,1713082232477,-376.34801074,0.00019889,2]
[322579034,1713082232487,-407.90695941,0.00019889,2]
[322579035,1713082232496,-3729.09185758,0.00019889,2]
[322579036,1713082232520,-596.26751041,0.00019889,2]
[322579037,1713082232530,-277.31248959,0.00019889,2]
[322579038,1713082232542,-65.57563513,0.00019889,2]
[322579039,1713082232553,-621.12248273,0.00019889,2]
[322579040,1713082232563,-616.69299396,0.00019889,2]
[322579041,1713082232572,-551.36056667,0.0001989,2]
[322579042,1713082232581,-532.4738176,0.0001989,2]
[322579043,1713082232590,-1992.21788626,0.0001989,2]
[322579044,1713082232600,-405.1994349,0.0001989,2]
[322579045,1713082232609,-2752.17391397,0.0001989,2]
[322579046,1713082232640,-1574.21846398,0.0001989,2]
[322579047,1713082232649,-362.75793443,0.0001989,2]
[322579048,1713082232658,-2356.92753375,0.0001989,2]
[322579049,1713082232667,-609.56382991,0.0001989,2]
[322579050,1713082232678,-200.58721846,0.0001989,2]
[322579051,1713082232687,-113.35540075,0.00019891,2]
[322579052,1713082232722,-562.34159793,0.00019891,2]
[322579053,1713082232756,-33.24508254,0.00019891,2]
[322579054,1713082232765,-704.53196381,0.00019891,2]
[322579055,1713082232778,-1038.70283577,0.00019891,2]
[322579056,1713082232822,-433.54638319,0.00019891,2]
[322579057,1713082232832,-408.53072925,0.00019891,2]
[322579058,1713082232841,-233.87783946,0.00019891,2]
[322579059,1713082232852,-192.75024761,0.00019891,2]
[322579060,1713082232861,-261.94705182,0.00019891,2]
[322579061,1713082232871,-419.22939929,0.00019892,2]
[322579062,1713082232880,-3078.21068361,0.00019892,2]
[322579063,1713082232889,-257.83754039,0.00019892,2]
[322579064,1713082232899,-683.27995213,0.00019892,2]
[322579065,1713082232909,-705.57830306,0.00019893,2]
[322579066,1713082232918,-163.39180425,0.00019898,2]
[322579067,1713082232927,-150.0,0.00019992,2]
[322579068,1713082232936,-1964.21028982,0.00019999,2]
[322579074,1713082241113,-646.319,0.00019999,2]
[322579075,1713082241125,-13366.16157259,0.00019999,2]
[322579076,1713082241134,-831.65,0.00020024,2]
[322579077,1713082241144,-499.99,0.00020024,2]
[322579078,1713082241153,-151.3,0.00020024,2]
[322579079,1713082241163,-163.39180424,0.00020031,2]
[322579080,1713082241172,-151.3,0.00020092,2]
[322579081,1713082241185,-2201.79,0.00020092,2]
[322579082,1713082241194,-151.3,0.0002016,2]
[322579083,1713082241203,-163.39180424,0.00020164,2]
[322579084,1713082241213,-288.17,0.00020177,2]
[322579085,1713082241222,-316.01827918,0.00020195,2]
[322579086,1713082241231,-1427.7545956,0.00020195,2]
[322579087,1713082241240,-1427.75459557,0.00020196,2]
[322579088,1713082241251,-375.75298822,0.00020196,2]
[322579089,1713082241261,-1427.75459557,0.00020196,2]
[322579090,1713082241270,-1427.75459557,0.00020197,2]
[322579091,1713082241279,-1427.75459557,0.00020197,2]
[322579092,1713082241289,-151.3,0.00020228,2]
[322579093,1713082241298,-316.01827916,0.00020254,2]
[322579094,1713082241308,-452.2499,0.00020264,2]
[322579095,1713082241317,-601.7962,0.00020264,2]
[322579096,1713082241326,-1472.8713,0.00020264,2]
[322579097,1713082241335,-425.444,0.00020264,2]
[322579098,1713082241345,-231.347,0.00020264,2]
[322579099,1713082241354,-3656.48614454,0.00020265,2]
[322579100,1713082241364,-212.894919,0.00020274,2]